bitfinex-derivatives/quotes_BTCF0:USTF0_20240830
["timestamp","ask_amount","ask_price","bid_price","bid_amount"]
[1725041772955,0.08726014,58823.0,58822.0,0.3608]
[1725041773845,0.08726014,58823.0,58821.0,0.085006]
[1725041774050,0.08726014,58823.0,58822.0,0.3608]
[1725041775549,0.08726014,58823.0,58822.0,0.445806]
[1725041777851,0.08726014,58823.0,58822.0,0.3608]
[1725041779060,0.00225514,58823.0,58822.0,1.155806]
[1725041779856,0.00225514,58823.0,58822.0,0.5608]
[1725041780366,0.05443932,58823.0,58822.0,1.0708]
[1725041780950,0.05443932,58823.0,58822.0,1.155806]
[1725041781160,0.05443932,58823.0,58822.0,0.645806]
[1725041781959,0.05443932,58823.0,58822.0,0.5608]
[1725041782158,0.05443932,58823.0,58822.0,0.645806]
[1725041782959,0.05443932,58823.0,58822.0,1.155806]
[1725041783156,0.00225514,58823.0,58822.0,1.155806]
[1725041784854,0.00225514,58823.0,58822.0,0.645806]
[1725041785251,0.05443932,58823.0,58822.0,0.645806]
[1725041785452,0.05443932,58823.0,58822.0,0.650806]
[1725041785852,0.05243932,58823.0,58822.0,0.650806]
[1725041786051,0.05243932,58823.0,58822.0,0.656806]
[1725041786655,0.05243932,58823.0,58822.0,0.654806]
[1725041787074,0.05243932,58823.0,58822.0,1.159806]
[1725041787264,0.00025514,58823.0,58822.0,1.160806]
[1725041787977,0.00025514,58823.0,58822.0,1.162806]
[1725041788755,0.00025514,58823.0,58822.0,1.160806]
[1725041788955,0.00025514,58823.0,58822.0,1.162806]
[1725041789254,0.00025514,58823.0,58822.0,0.652806]
[1725041789453,0.00025514,58823.0,58822.0,0.653806]
[1725041790159,0.00025514,58823.0,58822.0,0.651806]
[1725041790363,0.00025514,58823.0,58822.0,0.649806]
[1725041790556,0.00025514,58823.0,58822.0,0.647806]
[1725041790763,0.00025514,58823.0,58822.0,0.651806]
[1725041791262,0.00025514,58823.0,58822.0,0.649806]
[1725041791567,0.00025514,58823.0,58822.0,0.651806]
[1725041792357,0.00025514,58823.0,58822.0,0.3668]
[1725041792558,0.00025514,58823.0,58822.0,0.451806]
[1725041793766,0.05218092,58840.0,58833.0,0.084989]
[1725041793957,0.08498,58840.0,58839.0,0.2]
[1725041794669,0.084986,58836.0,58835.0,0.2]
[1725041795362,0.084987,58835.0,58834.0,0.12545514]
[1725041796563,0.084987,58835.0,58834.0,0.32545514]
[1725041796564,0.083987,58835.0,58834.0,0.32545514]
[1725041796868,0.082987,58835.0,58834.0,0.41044414]
[1725041797260,0.084987,58835.0,58834.0,0.41144414]
[1725041797768,0.082987,58835.0,58834.0,0.41144414]
[1725041798073,0.084987,58835.0,58834.0,0.41244414]
[1725041799576,0.002,58835.0,58834.0,0.41244414]
[1725041799761,0.002,58835.0,58834.0,0.49743314]
[1725041800065,0.002,58835.0,58834.0,0.41244414]
[1725041800264,0.05217125,58848.0,58847.0,0.08497]
[1725041800469,0.084966,58850.0,58848.0,0.084967]
[1725041800859,0.1173,58853.0,58848.0,0.084967]
[1725041800860,0.084967,58849.0,58848.0,0.084967]
[1725041801170,0.084966,58850.0,58847.0,0.56168]
[1725041801380,0.01279724,58856.0,58847.0,0.5608]
[1725041801562,0.08496,58854.0,58852.0,0.2]
[1725041802271,0.08496,58854.0,58853.0,0.3608]
[1725041802570,0.26780754,58854.0,58853.0,0.21514563]
[1725041803566,0.084964,58852.0,58850.0,0.084965]
[1725041803775,0.18184754,58851.0,58850.0,0.084965]
[1725041804360,0.18084754,58851.0,58850.0,0.084965]
[1725041804872,0.17984754,58851.0,58850.0,0.084965]
[1725041805275,0.11010972,58851.0,58850.0,0.085965]
[1725041806271,0.11010972,58851.0,58850.0,0.170931]
[1725041806573,0.11010972,58851.0,58850.0,0.09921959]
[1725041806774,0.11010972,58851.0,58850.0,0.45901959]
[1725041807073,0.11310972,58851.0,58850.0,0.46001959]
[1725041807670,0.11110972,58851.0,58850.0,0.46001959]
[1725041807859,0.11110972,58851.0,58850.0,0.54798559]
[1725041808064,0.11110972,58851.0,58850.0,1.65774559]
[1725041808272,0.11010972,58851.0,58850.0,1.65774559]
[1725041808470,0.11010972,58851.0,58850.0,1.50916155]
[1725041808675,0.022,58863.0,58851.0,0.084964]
[1725041808875,0.022,58863.0,58862.0,0.445748]
[1725041809169,0.13508359,58863.0,58862.0,0.445748]
[1725041809475,0.13508359,58863.0,58862.0,0.645748]
[1725041810471,0.022,58863.0,58862.0,0.645748]
[1725041810870,0.023,58863.0,58862.0,0.646748]
[1725041811076,0.026,58863.0,58862.0,0.647748]
[1725041813362,0.026,58863.0,58862.0,0.5628]
[1725041813781,0.195894,58863.0,58862.0,0.002]
[1725041814073,0.192894,58863.0,58862.0,0.001]
[1725041814273,1.387521,58863.0,58862.0,0.001]
[1725041814466,1.76145308,58863.0,58862.0,0.001]
[1725041815171,1.50661208,58863.0,58849.0,0.2]
[1725041815371,0.084966,58850.0,58849.0,0.284966]
[1725041815573,0.083966,58850.0,58849.0,0.284966]
[1725041815976,0.082966,58850.0,58849.0,0.284966]
[1725041816483,0.082966,58850.0,58849.0,0.2]
[1725041816669,0.083966,58850.0,58849.0,0.201]
[1725041817272,0.082966,58850.0,58849.0,0.201]
[1725041817478,0.443766,58850.0,58849.0,0.201]
[1725041817679,0.49592731,58850.0,58849.0,0.201]
[1725041818078,0.49792731,58850.0,58849.0,0.201]
[1725041818469,0.49792731,58850.0,58849.0,0.001]
[1725041818470,1.69265331,58850.0,58849.0,0.001]
[1725041818668,1.75361245,58850.0,58849.0,0.001]
[1725041818884,1.75361221,58850.0,58849.0,0.001]
[1725041819072,1.69265331,58850.0,58849.0,0.001]
[1725041819380,1.75361137,58850.0,58849.0,0.001]
[1725041819784,1.75361137,58850.0,58833.0,0.445789]
[1725041819785,0.084989,58834.0,58833.0,0.445789]
[1725041820375,0.084985,58837.0,58836.0,0.084984]
[1725041820586,0.084985,58837.0,58836.0,0.284984]
[1725041820881,0.084987,58835.0,58831.0,0.0002549]
[1725041821076,0.084992,58832.0,58831.0,0.0002549]
[1725041821279,0.072992,58832.0,58831.0,0.0852479]
[1725041821784,0.05243065,58837.0,58836.0,0.084986]
[1725041821975,0.42275806,58850.0,58846.0,0.084971]
[1725041821976,0.0521733,58847.0,58846.0,0.084971]
[1725041822280,0.0521733,58849.0,58847.0,0.2]
[1725041822487,0.08497,58847.0,58844.0,0.2]
[1725041822782,0.445762,58853.0,58843.0,0.410475]
[1725041823085,0.1211,58849.0,58847.0,0.2]
[1725041823279,0.37373524,58853.0,58847.0,0.2]
[1725041823480,0.37373524,58853.0,58850.0,0.284965]
[1725041823777,0.3608,58853.0,58851.0,0.084964]
[1725041823977,0.3608,58853.0,58852.0,0.084963]
[1725041824175,0.3618,58853.0,58852.0,0.084963]
[1725041825381,0.3738,58853.0,58852.0,0.084963]
[1725041825582,0.3728,58853.0,58852.0,0.084963]
[1725041825880,0.015,58853.0,58852.0,0.445763]
[1725041826080,0.009,58853.0,58852.0,0.084963]
[1725041826488,0.006,58853.0,58852.0,0.084963]
[1725041826683,0.009,58853.0,58852.0,0.084963]
[1725041827276,0.006,58853.0,58852.0,0.328763]
[1725041827481,0.009,58853.0,58852.0,0.328763]
[1725041827683,0.003,58853.0,58852.0,0.413726]
[1725041827987,0.008,58853.0,58852.0,0.413726]
[1725041828385,0.009,58853.0,58852.0,0.414726]
[1725041829592,0.009,58853.0,58852.0,0.212063]
[1725041832375,0.009,58853.0,58852.0,0.085963]
[1725041835185,0.293961,58853.0,58852.0,0.001]
[1725041835490,0.084979,58841.0,58840.0,0.0002549]
[1725041836181,0.05217038,58842.0,58840.0,0.0002549]
[1725041836386,0.05217038,58847.0,58842.0,0.084977]
[1725041836583,0.084971,58846.0,58840.0,0.0072549]
[1725041836789,0.2,58845.0,58840.0,0.0072549]
[1725041837086,0.530758,58841.0,58840.0,0.0072549]
[1725041837288,0.58392838,58841.0,58840.0,0.0142549]
[1725041837477,1.80776838,58841.0,58840.0,0.0142549]
[1725041837681,1.86873607,58841.0,58840.0,0.00899952]
[1725041837981,1.86873607,58841.0,58840.0,0.014]
[1725041837982,1.98443607,58841.0,58840.0,0.014]
[1725041838386,1.98443607,58841.0,58840.0,0.007]
[1725041838692,1.99774696,58841.0,58840.0,0.01]
[1725041839083,1.99775887,58841.0,58840.0,0.01]
[1725041839478,2.14557658,58841.0,58840.0,0.01]
[1725041839682,2.14557658,58841.0,58835.0,9e-07]
[1725041839683,0.254958,58836.0,58835.0,9e-07]
[1725041839909,1.325638,58836.0,58835.0,9e-07]
[1725041840094,1.923638,58836.0,58835.0,9e-07]
[1725041840984,1.723638,58836.0,58835.0,9e-07]
[1725041841378,1.737638,58836.0,58835.0,0.0010009]
[1725041841582,1.737638,58836.0,58835.0,9e-07]
[1725041841797,0.169974,58835.0,58830.0,0.0002549]
[1725041841983,0.9598,58831.0,58830.0,0.0002549]
[1725041842189,1.1598,58831.0,58830.0,0.0002549]
[1725041842492,1.66872,58831.0,58830.0,0.0002549]
[1725041842884,1.838706,58831.0,58830.0,0.0002549]
[1725041843088,1.238706,58831.0,58830.0,0.0002549]
[1725041843286,1.250706,58831.0,58830.0,0.0012549]
[1725041843897,0.455793,58831.0,58830.0,0.0012549]
[1725041844697,0.084996,58829.0,58828.0,0.1196]
[1725041845199,0.1637451,58830.0,58828.0,0.1196]
[1725041845400,0.1637451,58830.0,58827.0,0.284999]
[1725041845602,0.085013,58817.0,58816.0,0.3455]
[1725041845891,0.085013,58817.0,58811.0,0.0002549]
[1725041845892,0.2,58817.0,58811.0,0.0002549]
[1725041846089,0.08502,58812.0,58811.0,0.0002549]
[1725041846593,0.08402,58812.0,58811.0,0.0002549]
[1725041847801,0.1369451,58811.0,58809.0,0.1173]
[1725041848189,0.1369451,58811.0,58810.0,0.085023]
[1725041848495,0.1319451,58811.0,58810.0,0.085023]
[1725041848700,0.1319451,58811.0,58809.0,0.1173]
[1725041848898,0.085023,58810.0,58809.0,0.1173]
[1725041849202,0.085023,58810.0,58809.0,0.1213]
[1725041850492,0.085023,58810.0,58809.0,0.1173]
[1725041850693,0.086023,58810.0,58809.0,0.1173]
[1725041851402,0.087023,58810.0,58809.0,0.1173]
[1725041853707,0.087023,58810.0,58809.0,0.202325]
[1725041853708,0.002,58810.0,58809.0,0.202325]
[1725041854997,0.002,58810.0,58809.0,0.1173]
[1725041854998,0.087023,58810.0,58809.0,0.1173]
[1725041856695,0.04942,58809.0,58808.0,0.3608]
[1725041856895,0.04942,58809.0,58808.0,0.445826]
[1725041857895,0.05042,58809.0,58808.0,0.445826]
[1725041858996,0.05142,58809.0,58808.0,0.450826]
[1725041859801,0.002,58809.0,58808.0,0.090026]
[1725041862694,0.081694,58808.0,58807.0,0.1151]
[1725041863094,0.081694,58808.0,58807.0,0.200128]
[1725041863402,0.16672,58808.0,58807.0,0.1151]
[1725041863900,0.52752,58808.0,58807.0,0.1151]
[1725041864104,0.52852,58808.0,58807.0,0.1151]
[1725041864313,0.52852,58808.0,58807.0,0.200128]
[1725041864903,0.082694,58808.0,58807.0,0.200128]
[1725041865106,0.083694,58808.0,58807.0,1.482304]
[1725041865304,0.085008,58821.0,58820.0,0.085008]
[1725041865504,0.085008,58821.0,58820.0,0.285008]
[1725041865706,0.0002549,58822.0,58821.0,0.085007]
[1725041865901,0.0002549,58822.0,58821.0,0.285007]
[1725041866411,0.0852609,58822.0,58821.0,0.285007]
[1725041866607,0.0852609,58822.0,58814.0,0.3608]
[1725041866608,0.085016,58816.0,58814.0,0.2]
[1725041866909,0.085016,58815.0,58814.0,0.2]
[1725041867106,0.085026,58809.0,58806.0,0.085029]
[1725041867505,0.085028,58807.0,58806.0,0.085029]
[1725041868012,0.085026,58809.0,58806.0,0.085029]
[1725041868310,0.085026,58808.0,58806.0,0.1355098]
[1725041868795,0.085026,58808.0,58807.0,0.085028]
[1725041869908,0.085026,58808.0,58807.0,0.285028]
[1725041870106,0.086026,58808.0,58807.0,0.288028]
[1725041870508,0.087026,58808.0,58807.0,0.288028]
[1725041870897,0.086026,58808.0,58807.0,0.288028]
[1725041871103,0.087026,58808.0,58807.0,0.288028]
[1725041872305,0.002,58808.0,58807.0,0.288028]
[1725041873008,0.3608,58825.0,58817.0,0.085013]
[1725041873202,0.3608,58825.0,58817.0,0.285013]
[1725041873404,0.445812,58818.0,58817.0,0.2]
[1725041873609,0.445812,58818.0,58810.0,0.3608]
[1725041873610,0.445812,58818.0,58815.0,0.2]
[1725041873813,0.3608,58818.0,58817.0,0.085013]
[1725041874023,0.3608,58825.0,58821.0,0.085007]
[1725041874206,0.37736067,58825.0,58821.0,0.285007]
[1725041874619,0.085005,58823.0,58821.0,0.285007]
[1725041875116,0.0852609,58822.0,58821.0,0.2]
[1725041875417,0.0852609,58822.0,58818.0,0.3256]
[1725041875418,0.0022549,58822.0,58818.0,0.3256]
[1725041875721,0.3608,58838.0,58821.0,0.2]
[1725041875910,0.136,58836.0,58830.0,0.2]
[1725041876316,0.084993,58831.0,58830.0,0.2]
[1725041876511,0.084995,58830.0,58826.0,0.284999]
[1725041876813,0.37746468,58834.0,58829.0,0.2]
[1725041877130,0.01666468,58834.0,58833.0,0.2]
[1725041877813,0.10165368,58834.0,58833.0,0.2]
[1725041878125,0.11165368,58834.0,58833.0,0.2]
[1725041878605,0.0102549,58834.0,58833.0,0.28499]
[1725041878809,0.0002549,58834.0,58833.0,0.28499]
[1725041879010,0.0142549,58834.0,58833.0,0.28499]
[1725041880309,0.0272549,58834.0,58833.0,0.28499]
[1725041881905,0.0272549,58834.0,58833.0,0.64579]
[1725041882309,0.0272549,58834.0,58833.0,1.2407]
[1725041883322,0.0272549,58834.0,58833.0,0.73078]
[1725041883824,0.0162549,58834.0,58833.0,0.73078]
[1725041884022,0.0162549,58834.0,58833.0,1.15571]
[1725041884324,0.0162549,58834.0,58833.0,0.64579]
[1725041884517,0.0162549,58834.0,58833.0,0.73078]
[1725041884710,0.0162549,58834.0,58833.0,1.2407]
[1725041885015,0.0162549,58834.0,58833.0,0.64579]
[1725041885422,0.0142549,58834.0,58833.0,0.73478]
[1725041885619,0.0142549,58834.0,58833.0,0.64979]
[1725041886119,0.0002549,58834.0,58833.0,0.64579]
[1725041886423,0.0032549,58834.0,58833.0,0.64679]
[1725041887113,0.0002549,58834.0,58833.0,0.64679]
[1725041887315,0.0002549,58834.0,58833.0,0.73178]
[1725041888920,0.0002549,58834.0,58833.0,0.81677]
[1725041889120,0.3608,58846.0,58845.0,0.084973]
[1725041889313,0.3608,58846.0,58845.0,0.284973]
[1725041890526,0.3738,58846.0,58845.0,0.284973]
[1725041892018,0.3828,58846.0,58845.0,0.284973]
[1725041892516,0.3698,58846.0,58845.0,0.284973]
[1725041892720,0.018,58846.0,58845.0,0.284973]
[1725041892912,0.0701633,58846.0,58845.0,0.645773]
[1725041893917,0.0701633,58846.0,58845.0,0.730746]
[1725041894625,0.0701633,58846.0,58845.0,0.645773]
[1725041894626,0.13111571,58846.0,58845.0,0.645773]
[1725041894923,0.13111571,58846.0,58845.0,0.284973]
[1725041895114,0.216088,58846.0,58845.0,0.284973]
[1725041895421,0.216088,58846.0,58845.0,0.2]
[1725041896521,0.301059,58846.0,58845.0,0.2]
[1725041896720,0.301059,58846.0,58840.0,0.0002549]
[1725041896721,0.169958,58841.0,58840.0,0.0002549]
[1725041896922,0.22212259,58841.0,58840.0,0.0002549]
[1725041897123,0.198096,58841.0,58840.0,0.2002549]
[1725041897521,0.198096,58841.0,58840.0,0.2852349]
[1725041898028,0.198096,58841.0,58840.0,0.2002549]
[1725041898416,0.202096,58841.0,58840.0,0.2002549]
[1725041898629,0.206096,58841.0,58840.0,0.2002549]
[1725041898829,0.206096,58841.0,58840.0,0.0778149]
[1725041899916,0.092979,58841.0,58840.0,0.0778149]
[1725041901731,0.008,58841.0,58840.0,0.1627949]
[1725041901929,0.008,58841.0,58840.0,0.5235949]
[1725041902826,0.008,58841.0,58840.0,0.1627949]
[1725041904227,0.008,58841.0,58840.0,0.17923286]
[1725041905035,0.008,58841.0,58840.0,0.54003286]
[1725041905331,0.008,58841.0,58840.0,0.1627949]
[1725041908822,0.004,58841.0,58840.0,0.1627949]
[1725041909023,0.088979,58841.0,58840.0,0.1657949]
[1725041910128,0.14114995,58841.0,58840.0,0.1657949]
[1725041910336,0.088979,58841.0,58840.0,0.1657949]
[1725041910935,0.14114995,58841.0,58840.0,0.1657949]
[1725041911136,0.15721216,58841.0,58839.0,0.2]
[1725041911324,0.05217095,58840.0,58839.0,0.284981]
[1725041911527,0.008,58841.0,58840.0,0.08498]
[1725041911829,0.008,58841.0,58840.0,0.21388]
[1725041912232,0.08497,58847.0,58840.0,0.1289]
[1725041912432,0.003,58841.0,58840.0,0.1289]
[1725041913235,0.007,58841.0,58840.0,0.41388]
[1725041914532,0.008,58841.0,58840.0,0.41388]
[1725041915622,0.008,58841.0,58840.0,0.28498]
[1725041917435,0.092979,58841.0,58840.0,0.28498]
[1725041917929,0.092979,58841.0,58840.0,0.2]
[1725041919839,0.453779,58841.0,58840.0,0.2]
[1725041920344,0.3688,58841.0,58840.0,0.28498]
[1725041920536,0.008,58841.0,58840.0,0.73076]
[1725041921634,0.008,58841.0,58840.0,0.64578]
[1725041922943,0.008,58841.0,58840.0,0.28498]
[1725041923134,0.008,58841.0,58840.0,0.64578]
[1725041924135,0.008,58841.0,58840.0,0.28498]
[1725041925649,0.008,58841.0,58840.0,0.64578]
[1725041927844,0.0002549,58851.0,58850.0,0.084966]
[1725041928053,0.0002549,58851.0,58850.0,0.284966]
[1725041929142,0.27041351,58857.0,58853.0,0.2]
[1725041929659,0.27041351,58857.0,58854.0,0.08496]
[1725041930039,0.28651311,58857.0,58854.0,0.08496]
[1725041930744,0.3608,58855.0,58850.0,0.0852199]
[1725041930944,0.084964,58851.0,58850.0,0.0002549]
[1725041931339,0.083964,58851.0,58850.0,0.0852209]
[1725041931551,0.082964,58851.0,58850.0,0.0852209]
[1725041932041,0.096964,58851.0,58850.0,0.0862209]
[1725041932247,0.110964,58851.0,58850.0,0.0872209]
[1725041932943,0.110964,58851.0,58850.0,0.0022549]
[1725041933144,0.195928,58851.0,58850.0,0.0022549]
[1725041933343,0.556728,58851.0,58850.0,0.0022549]
[1725041933545,0.58443713,58851.0,58850.0,0.0022549]
[1725041935245,0.084979,58841.0,58840.0,0.3286]
[1725041935439,0.9216,58841.0,58830.0,0.084993]
[1725041935639,0.3608,58831.0,58830.0,0.084993]
[1725041935944,0.085002,58826.0,58824.0,0.5286]
[1725041936247,0.3608,58831.0,58824.0,0.2]
[1725041936452,0.085006,58822.0,58821.0,0.20857993]
[1725041936753,0.085006,58822.0,58821.0,0.2]
[1725041937345,0.085009,58820.0,58819.0,0.0002549]
[1725041937543,0.730818,58820.0,58819.0,0.0002549]
[1725041937843,1.755849,58820.0,58819.0,0.0002549]
[1725041938047,1.748849,58820.0,58819.0,0.0002549]
[1725041938452,1.741849,58820.0,58819.0,0.0002549]
[1725041938754,1.742849,58820.0,58819.0,0.0062549]
[1725041939047,1.76272911,58820.0,58819.0,0.0062549]
[1725041939248,1.76272911,58820.0,58819.0,0.0092549]
[1725041940142,1.76172911,58820.0,58819.0,0.0032549]
[1725041940546,1.84673811,58820.0,58819.0,0.0032549]
[1725041940852,0.085023,58810.0,58809.0,0.0504808]
[1725041941050,1.006623,58810.0,58809.0,0.0504808]
[1725041941265,1.516743,58810.0,58809.0,0.0504808]
[1725041941649,0.085029,58806.0,58800.0,0.085038]
[1725041941948,0.3608,58801.0,58800.0,0.085038]
[1725041942658,0.12890459,58819.0,58800.0,0.685038]
[1725041942857,0.022,58929.0,58852.0,0.084963]
[1725041942858,0.084935,58872.0,58852.0,0.084963]
[1725041943058,0.3608,58878.0,58862.0,0.3608]
[1725041943059,0.04168531,58863.0,58862.0,0.3608]
[1725041943557,1.15136531,58863.0,58862.0,0.3608]
[1725041943860,0.53168,58863.0,58862.0,0.3608]
[1725041944154,1.13168,58863.0,58862.0,0.3608]
[1725041945046,1.14568,58863.0,58862.0,0.3608]
[1725041945252,1.15968,58863.0,58862.0,0.3608]
[1725041945448,1.15968,58863.0,58857.0,0.3610549]
[1725041945449,1.21184366,58863.0,58857.0,0.3610549]
[1725041945757,0.2,58858.0,58849.0,0.3608]
[1725041945953,0.5608,58850.0,58844.0,0.3608]
[1725041946152,0.18577616,58845.0,58844.0,0.3608]
[1725041946360,0.05216366,58845.0,58844.0,0.3608]
[1725041946551,0.05216366,58845.0,58838.0,0.3608]
[1725041946552,1.28766366,58845.0,58838.0,0.3608]
[1725041946751,0.2,58839.0,58838.0,0.3608]
[1725041947051,0.25216366,58839.0,58838.0,0.3608]
[1725041947357,1.36204366,58839.0,58838.0,0.3608]
[1725041947548,0.21966285,58858.0,58844.0,0.3608]
[1725041947860,0.05,58863.0,58861.0,0.084949]
[1725041947861,0.036,58863.0,58861.0,0.084949]
[1725041948061,0.05215314,58873.0,58862.0,0.6008]
[1725041948252,0.42568793,58870.0,58862.0,0.3608]
[1725041948557,0.05215314,58873.0,58844.0,0.19512]
[1725041948558,0.445747,58863.0,58860.0,0.0002549]
[1725041948765,0.24,58861.0,58860.0,0.0002549]
[1725041948968,0.29215314,58861.0,58846.0,0.3608]
[1725041949148,0.24,58847.0,58843.0,0.3608]
[1725041949462,0.05215314,58846.0,58843.0,0.3608]
[1725041949762,0.69457555,58846.0,58843.0,0.3608]
[1725041949947,0.56197555,58845.0,58843.0,0.3608]
[1725041950261,0.05217555,58844.0,58843.0,0.3608]
[1725041950861,0.0002549,58850.0,58843.0,0.3608]
[1725041951062,0.0002549,58850.0,58849.0,0.3608]
[1725041952359,0.0142549,58850.0,58849.0,0.3608]
[1725041952758,0.0142549,58850.0,58849.0,0.51578144]
[1725041952970,0.0142549,58850.0,58849.0,1.11578144]
[1725041953258,0.24,58868.0,58850.0,0.084965]
[1725041953458,0.1336,58875.0,58867.0,0.3608]
[1725041953654,0.24,58868.0,58861.0,0.3608]
[1725041953861,0.24,58864.0,58861.0,0.3608]
[1725041954160,0.24,58864.0,58858.0,0.3608]
[1725041954361,0.50968,58863.0,58858.0,0.3608]
[1725041954558,0.084953,58859.0,58857.0,0.0002549]
[1725041954762,0.13728,58863.0,58857.0,0.0002549]
[1725041954963,0.0002549,58868.0,58861.0,0.084949]
[1725041954964,0.24,58867.0,58861.0,0.084949]
[1725041955161,0.24,58867.0,58865.0,0.3608]
[1725041955556,0.50964,58866.0,58865.0,0.3608]
[1725041955958,1.10964,58866.0,58865.0,0.3608]
[1725041957062,1.12264,58866.0,58865.0,0.3618]
[1725041957264,0.52264,58866.0,58865.0,0.3618]
[1725041957462,1.12264,58866.0,58865.0,0.3618]
[1725041957668,0.52264,58866.0,58865.0,0.3618]
[1725041958265,0.52264,58866.0,58865.0,0.001]
[1725041958566,0.52264,58866.0,58865.0,0.3618]
[1725041958762,0.013,58866.0,58865.0,0.3618]
[1725041958961,0.024,58866.0,58865.0,0.3628]
[1725041962671,0.024,58866.0,58865.0,0.002]
[1725041963761,1.13364,58866.0,58865.0,0.002]
[1725041963976,1.13364,58866.0,58859.0,0.3608]
[1725041963977,0.24,58860.0,58859.0,0.3608]
[1725041964568,0.74968,58860.0,58859.0,0.3608]
[1725041965480,1.36268,58860.0,58859.0,0.3618]
[1725041965678,1.43362439,58860.0,58859.0,0.3618]
[1725041966076,1.44562439,58860.0,58859.0,0.3628]
[1725041966480,1.43262439,58860.0,58859.0,0.3618]
[1725041966669,1.57452439,58860.0,58859.0,0.3628]
[1725041966871,1.44362439,58860.0,58859.0,0.3628]
[1725041967072,1.43362439,58860.0,58859.0,0.3628]
[1725041967284,0.32394439,58860.0,58859.0,0.3628]
[1725041967485,0.32394439,58860.0,58859.0,0.002]
[1725041967486,0.263,58860.0,58859.0,0.002]
[1725041967889,0.263,58860.0,58859.0,0.3628]
[1725041968291,0.225,58860.0,58859.0,0.3628]
[1725041968593,0.226,58860.0,58859.0,0.3628]
[1725041969199,0.226,58860.0,58859.0,0.3618]
[1725041969200,0.014,58860.0,58859.0,0.3618]
[1725041969391,0.027,58860.0,58859.0,1.01038144]
[1725041969587,0.227,58860.0,58859.0,1.01038144]
[1725041970082,0.227,58860.0,58859.0,0.8554]
[1725041970489,0.227,58860.0,58859.0,0.7236]
[1725041970791,0.73668,58860.0,58859.0,0.7236]
[1725041970994,0.73668,58860.0,58859.0,0.002]
[1725041972098,0.87628,58860.0,58859.0,0.002]
[1725041973198,0.89610904,58860.0,58859.0,0.002]
[1725041973700,0.084954,58858.0,58857.0,0.0002549]
[1725041974989,0.096954,58858.0,58857.0,0.0012549]
[1725041975195,0.109954,58858.0,58857.0,0.0022549]
[1725041978296,0.084941,58868.0,58857.0,1.3119749]
[1725041978499,0.08492,58882.0,58867.0,0.5608]
[1725041978697,0.02005009,58882.0,58876.0,0.084927]
[1725041978897,0.02005009,58882.0,58880.0,0.3608]
[1725041978898,0.30575009,58882.0,58880.0,0.3608]
[1725041979089,0.50575009,58882.0,58880.0,0.3608]
[1725041979291,0.30575009,58882.0,58880.0,0.3608]
[1725041979496,0.2,58881.0,58880.0,0.3608]
[1725041980693,0.23085256,58881.0,58880.0,0.3608]
[1725041981095,0.23085256,58881.0,58880.0,0.3618]
[1725041981291,0.50952,58881.0,58880.0,0.3618]
[1725041981489,0.37162,58882.0,58880.0,0.3618]
[1725041981697,0.03294271,58881.0,58880.0,0.3618]
[1725041981895,0.03294271,58881.0,58880.0,0.3608]
[1725041982096,0.03594271,58881.0,58880.0,0.3628]
[1725041982610,0.03294271,58881.0,58880.0,0.3618]
[1725041982802,0.03294271,58881.0,58880.0,0.3628]
[1725041984303,0.087919,58882.0,58880.0,0.3628]
[1725041984704,0.084919,58882.0,58880.0,0.3618]
[1725041984912,0.03500455,58881.0,58880.0,0.3628]
[1725041985216,0.03500455,58881.0,58880.0,0.58558554]
[1725041985398,0.03400455,58881.0,58880.0,0.58558554]
[1725041985599,0.03400455,58881.0,58880.0,0.3618]
[1725041985817,0.03400455,58881.0,58880.0,0.3628]
[1725041986001,0.03500455,58881.0,58880.0,0.3628]
[1725041987299,0.03500455,58881.0,58880.0,0.447722]
[1725041987507,0.03500455,58881.0,58880.0,0.47050754]
[1725041988608,0.03500455,58881.0,58880.0,0.38558554]
[1725041990808,0.03500455,58881.0,58880.0,0.47050754]
[1725041991104,0.03600455,58881.0,58880.0,0.47050754]
[1725041991510,0.03600455,58881.0,58880.0,0.38558554]
[1725041991707,0.03600455,58881.0,58880.0,0.3628]
[1725041991921,0.72092555,58881.0,58880.0,0.3628]
[1725041992107,1.72984555,58881.0,58880.0,0.001]
[1725041992416,1.72984555,58881.0,58879.0,0.3608]
[1725041992417,0.02249558,58881.0,58879.0,0.3608]
[1725041992604,0.02249558,58881.0,58880.0,0.3608]
[1725041992605,0.002,58881.0,58880.0,0.3608]
[1725041992913,0.03448636,58880.0,58879.0,0.00088]
[1725041993105,0.63448636,58880.0,58875.0,0.3610549]
[1725041993303,0.3608,58876.0,58875.0,0.0002549]
[1725041993715,1.10956,58876.0,58875.0,0.0002549]
[1725041994305,1.10956,58876.0,58875.0,0.0012549]
[1725041994507,1.10956,58876.0,58836.0,0.084986]
[1725041994508,0.87912445,58876.0,58836.0,0.084986]
[1725041994707,0.2,58840.0,58838.0,0.3608]
[1725041995103,0.3608,58847.0,58838.0,0.3608]
[1725041995104,0.2,58839.0,58838.0,0.38358554]
[1725041995302,0.2,58839.0,58838.0,0.02278554]
[1725041995511,0.3608,58842.0,58838.0,0.02278554]
[1725041995708,0.5608,58839.0,58838.0,0.02278554]
[1725041997109,0.5608,58839.0,58836.0,0.005]
[1725041997314,0.5608,58839.0,58838.0,0.004]
[1725041998021,0.5608,58839.0,58838.0,0.007]
[1725041998215,0.5608,58839.0,58838.0,0.003]
[1725041998415,0.5618,58839.0,58838.0,0.003]
[1725042000413,0.084987,58835.0,58834.0,0.022]
[1725042000623,0.284987,58835.0,58834.0,0.022]
[1725042001115,0.284987,58835.0,58834.0,0.04478554]
[1725042001721,0.297987,58835.0,58834.0,0.04578554]
[1725042001923,0.309987,58835.0,58834.0,0.04678554]
[1725042002114,0.225,58835.0,58834.0,0.04678554]